{"text_format":"1","workbook":"xlsx","n_sheets":4,"sheets":["封面","办公用品清单","用品库存清单","用品领用清单"],"not_rendered":{"charts":0,"images":0,"macros":1,"external_links":0,"defined_names":0,"comments":0,"pivot_tables":0},"unopened":[],"bounds":{"document_bytes":16777216,"sheet_cells":100000,"rows_first":2000,"rows_last":500,"rows_between":2000,"halvings":0,"cell_chars":16384,"cell_head_chars":4096},"cells_cut":0,"cells_raw":0,"read":"whole","date_system":"1900"}

{"sheet":"封面","index":0,"n_rows":0,"n_cols":0,"rows_kept":0,"cut":false,"hidden":false,"merged":[[0,3,1,6]]}

{"sheet":"办公用品清单","index":1,"n_rows":14,"n_cols":8,"rows_kept":14,"cut":false,"hidden":false,"merged":[[0,0,0,7]]}
["办公用品清单"]
["序号","物品编号","物品名称","品牌","规格（颜色、型号）","单位 ","数量","生产单位"]
[null,null,null,null,null,null,20]
[null,null,null,null,null,null,50]
[null,null,null,null,null,null,30]
[null,null,null,null,null,null,60]
[null,null,null,null,null,null,80]
[null,null,null,null,null,null,90]
[null,null,null,null,null,null,40]
[null,null,null,null,null,null,50]
[null,null,null,null,null,null,50]
[null,null,null,null,null,null,60]
[null,null,null,null,null,null,80]
[null,null,null,null,null,null,30]

{"sheet":"用品库存清单","index":2,"n_rows":14,"n_cols":12,"rows_kept":14,"cut":false,"hidden":false,"merged":[[0,0,0,11]]}
["办公用品库存清单"]
["序号","物品编号","物品名称","品牌","规格（颜色、型号）","单位 ","原库存数","入库数量","出库数量","现有库存","库存警告","备注"]
[null,null,null,null,null,null,null,null,null,{"$f":"G3+H3-I3","v":0},{"$f":"IF(J3<10,\"库存不足\",\"\")","v":"库存不足"}]
[null,null,null,null,null,null,null,null,null,{"$f":"G4+H4-I4","v":0},{"$f":"IF(J4<10,\"库存不足\",\"\")","v":"库存不足"}]
[null,null,null,null,null,null,null,null,null,0,"库存不足"]
[null,null,null,null,null,null,null,null,null,0,"库存不足"]
[null,null,null,null,null,null,null,null,null,0,"库存不足"]
[null,null,null,null,null,null,null,null,null,0,"库存不足"]
[null,null,null,null,null,null,null,null,null,0,"库存不足"]
[null,null,null,null,null,null,null,null,null,0,"库存不足"]
[null,null,null,null,null,null,null,null,null,0,"库存不足"]
[null,null,null,null,null,null,null,null,null,0,"库存不足"]
[null,null,null,null,null,null,null,null,null,0,"库存不足"]
[null,null,null,null,null,null,null,null,null,0,"库存不足"]

{"sheet":"用品领用清单","index":3,"n_rows":2,"n_cols":11,"rows_kept":2,"cut":false,"hidden":false,"merged":[[0,0,0,10]]}
["办公用品领用清单"]
["序号","物品编号","物品名称","品牌","规格（颜色、型号）","单位 ","领用部门","领用人","领用数量","领用时间","备注"]